bitfinex/quotes_BTCUSD_20230118
["timestamp","ask_amount","ask_price","bid_price","bid_amount"]
[1674010355207,0.15185097,21291.0,21288.0,0.94044522]
[1674010355483,0.34257692,21291.0,21288.0,0.00097422]
[1674010355825,0.329883,21290.0,21288.0,0.00097422]
[1674010356094,0.321383,21289.0,21288.0,0.00097422]
[1674010356341,0.0085,21290.0,21286.0,0.50055619]
[1674010356583,0.19922595,21290.0,21286.0,0.50055619]
[1674010357369,0.0085,21290.0,21286.0,0.50055619]
[1674010357619,0.0085,21290.0,21286.0,0.97034819]
[1674010358118,0.01035097,21291.0,21286.0,0.97034819]
[1674010358882,0.20107692,21291.0,21286.0,0.97034819]
[1674010359130,0.20107692,21291.0,21286.0,1.08201979]
[1674010359390,0.0085,21291.0,21286.0,1.39952719]
[1674010359643,0.19072595,21291.0,21287.0,0.321383]
[1674010359896,0.0085,21292.0,21288.0,1.260846]
[1674010360141,0.0085,21293.0,21288.0,0.939463]
[1674010360904,0.19922595,21293.0,21288.0,0.939463]
[1674010361172,0.19072595,21292.0,21288.0,0.46973]
[1674010361431,0.33173397,21291.0,21288.0,0.46973]
[1674010361678,0.20107692,21291.0,21288.0,0.46973]
[1674010361921,0.01035097,21291.0,21288.0,0.46973]
[1674010362166,0.16035097,21291.0,21288.0,0.46973]
[1674010362692,0.16035097,21291.0,21287.0,0.00095917]
[1674010362693,0.80758904,21291.0,21287.0,0.00095917]
[1674010362944,0.321383,21290.0,21287.0,0.00095917]
[1674010363189,1.93770099,21291.0,21286.0,0.03078219]
[1674010363190,0.329883,21289.0,21286.0,0.03078219]
[1674010363456,0.19922595,21289.0,21286.0,0.03078219]
[1674010363698,0.0085,21289.0,21286.0,0.03078219]
[1674010365005,0.4543,21291.0,21286.0,0.50057119]
[1674010365256,0.0085,21290.0,21287.0,0.321383]
[1674010365501,0.0085,21290.0,21287.0,0.939512]
[1674010366253,0.0085,21290.0,21287.0,0.934512]
[1674010368051,0.469609,21295.0,21288.0,0.321383]
[1674010368299,0.92111,21295.0,21290.0,0.939402]
[1674010368549,0.0777,21292.0,21290.0,0.939402]
[1674010369285,0.0777,21292.0,21290.0,0.469701]
[1674010371565,0.0777,21292.0,21290.0,0.939405]
[1674010372069,0.0777,21292.0,21291.0,0.321383]
[1674010372325,0.0777,21292.0,21290.0,0.469704]
[1674010372584,0.0777,21292.0,21291.0,0.939364]
[1674010372836,0.0777,21292.0,21291.0,1.260747]
[1674010373083,0.0777,21292.0,21291.0,0.469682]
[1674010373334,0.07955097,21292.0,21291.0,0.469682]
[1674010375415,0.0777,21292.0,21291.0,0.469682]
[1674010377440,0.921095,21295.0,21291.0,0.469682]
[1674010377690,0.0085,21294.0,21291.0,0.469682]
[1674010377949,0.0085,21294.0,21291.0,0.939364]
[1674010378442,1.06391971,21298.0,21291.0,0.939364]
[1674010378698,0.12043685,21297.0,21291.0,0.939364]
[1674010378961,0.34922595,21297.0,21291.0,0.939364]
[1674010379215,0.34922595,21297.0,21291.0,0.94034033]
[1674010379461,0.19072595,21296.0,21291.0,0.94034033]
[1674010379728,0.0085,21295.0,21291.0,0.94034033]
[1674010379997,0.19922595,21295.0,21291.0,0.94034033]
[1674010380512,0.0085,21295.0,21291.0,0.94034033]
[1674010380759,0.0085,21297.0,21291.0,0.94034033]
[1674010381006,0.0085,21297.0,21292.0,0.321383]
[1674010381007,0.34922595,21297.0,21292.0,0.321383]
[1674010381250,0.0085,21297.0,21291.0,0.47065833]
[1674010381507,0.19922595,21297.0,21293.0,0.939263]
[1674010381760,0.00185097,21296.0,21293.0,0.939263]
[1674010382288,0.19072595,21295.0,21291.0,0.47065733]
[1674010382558,1.12434754,21296.0,21291.0,0.47065733]
[1674010382559,0.52060895,21294.0,21291.0,0.47065733]
[1674010382816,0.19922595,21294.0,21291.0,0.47065733]
[1674010383076,0.00185097,21293.0,21291.0,0.47065733]
[1674010383584,0.00185097,21293.0,21291.0,0.469681]
[1674010383878,0.00185097,21293.0,21289.0,0.93942]
[1674010384093,0.19257692,21293.0,21289.0,0.93942]
[1674010384838,0.34257692,21293.0,21289.0,0.93942]
[1674010385372,0.15185097,21293.0,21289.0,0.93942]
[1674010386384,0.0085,21292.0,21289.0,0.46971]
[1674010386636,0.00841989,21292.0,21289.0,0.46971]
[1674010387652,0.00841989,21292.0,21289.0,0.939436]
[1674010387904,0.004,21293.0,21290.0,0.321383]
[1674010388162,0.004,21293.0,21291.0,0.791065]
[1674010388408,0.004,21293.0,21292.0,0.321383]
[1674010388656,0.004,21293.0,21292.0,0.469659]
[1674010388909,0.004,21293.0,21292.0,1.260701]
[1674010389449,1.35777971,21298.0,21292.0,1.260701]
[1674010389450,1.03527971,21298.0,21292.0,1.260701]
[1674010389704,0.95964455,21298.0,21292.0,1.28750552]
[1674010389953,0.0085,21297.0,21292.0,0.939318]
[1674010390220,0.3111628,21297.0,21292.0,0.94031718]
[1674010390495,0.4611628,21297.0,21292.0,0.94031718]
[1674010390719,0.19922595,21297.0,21292.0,1.07131718]
[1674010390966,0.4611628,21297.0,21292.0,0.94031718]
[1674010391235,0.19922595,21297.0,21292.0,1.07131718]
[1674010391996,0.34922595,21297.0,21292.0,0.94031718]
[1674010392244,0.19922595,21297.0,21292.0,1.07131718]
[1674010392517,0.66877695,21297.0,21292.0,1.07131718]
[1674010392764,0.7807138,21297.0,21292.0,1.07131718]
[1674010393267,0.66877695,21297.0,21292.0,1.07131718]
[1674010393767,0.19922595,21297.0,21292.0,1.07131718]
[1674010394101,0.0085,21297.0,21292.0,1.07131718]
[1674010394606,0.19922595,21297.0,21292.0,1.07131718]
[1674010394878,0.19922595,21297.0,21292.0,0.94031718]
[1674010395138,0.19922595,21297.0,21292.0,1.02831718]
[1674010395415,0.19922595,21297.0,21292.0,0.94031718]
[1674010395690,0.19922595,21297.0,21292.0,1.02831718]
[1674010395938,0.34922595,21297.0,21292.0,1.02831718]
[1674010396199,0.19922595,21297.0,21292.0,0.94031718]
[1674010396457,0.3111628,21297.0,21292.0,1.02831718]
[1674010396745,0.34072595,21296.0,21292.0,1.02831718]
[1674010396974,0.00185097,21295.0,21292.0,1.11631718]
[1674010397236,0.0085,21295.0,21292.0,1.11631718]
[1674010397761,0.0085,21296.0,21292.0,1.11631718]
[1674010398075,0.0085,21296.0,21292.0,0.94031718]
[1674010398334,0.0085,21296.0,21292.0,1.02831718]
[1674010398581,0.0085,21296.0,21292.0,0.94031718]
[1674010398845,0.0085,21296.0,21292.0,1.02831718]
[1674010399101,0.0085,21296.0,21292.0,0.94031718]
[1674010399403,0.0085,21296.0,21292.0,1.02831718]
[1674010399883,0.0085,21296.0,21292.0,0.94031718]
[1674010400920,0.0085,21296.0,21292.0,1.02831718]
[1674010401170,0.00185097,21295.0,21292.0,1.02831718]
[1674010401437,0.0085,21297.0,21292.0,1.02831718]
[1674010402003,0.0085,21297.0,21292.0,1.3765047]
[1674010402263,0.01289786,21298.0,21293.0,0.321383]
[1674010402496,0.01289786,21298.0,21293.0,0.49818752]
[1674010402755,0.01289786,21298.0,21294.0,2.07838352]
[1674010403008,0.01289786,21298.0,21295.0,0.321383]
[1674010403277,0.01289786,21298.0,21296.0,0.321383]
[1674010403545,0.01289786,21298.0,21297.0,0.321383]
[1674010404047,0.01289786,21298.0,21297.0,1.260481]
[1674010404305,0.20362381,21298.0,21297.0,0.790932]
[1674010404595,0.01289786,21298.0,21297.0,0.790932]
[1674010404821,0.01289786,21298.0,21296.0,0.469567]
[1674010405083,0.01289786,21298.0,21293.0,0.46963]
[1674010405084,0.19922595,21297.0,21293.0,0.46963]
[1674010405508,0.51210895,21296.0,21293.0,0.46963]
[1674010405510,0.19072595,21296.0,21292.0,0.47064218]
[1674010405766,0.19072595,21296.0,21292.0,0.00099918]
[1674010405767,0.52060895,21295.0,21292.0,0.00099918]
[1674010406037,0.321383,21294.0,21292.0,0.00099918]
[1674010406302,0.19922595,21295.0,21292.0,0.00099918]
[1674010406553,0.0085,21295.0,21293.0,0.092]
[1674010406822,0.0085,21295.0,21291.0,0.939331]
[1674010407149,0.19922595,21295.0,21292.0,0.092]
[1674010407334,0.19922595,21295.0,21291.0,0.939331]
[1674010407590,0.19072595,21294.0,21292.0,0.092]
[1674010407853,1.35962585,21295.0,21290.0,0.469683]
[1674010407854,0.33173397,21293.0,21290.0,0.469683]
[1674010408123,1.13843395,21295.0,21291.0,0.092]
[1674010408376,0.478112,21295.0,21291.0,0.092]
[1674010408901,0.00185097,21294.0,21290.0,0.93939]
[1674010409163,0.19257692,21294.0,21291.0,0.092]
[1674010409447,0.00180001,21292.0,21290.0,0.93939]
[1674010409733,0.00180001,21292.0,21289.0,0.47068994]
[1674010409734,0.19252596,21292.0,21289.0,0.47068994]
[1674010410010,7.706e-05,21290.0,21289.0,0.47068994]
[1674010410565,0.30303301,21290.0,21287.0,0.46977]
[1674010410822,7.706e-05,21290.0,21286.0,0.03078219]
[1674010411428,0.19080301,21290.0,21288.0,0.939482]
[1674010411979,0.00185097,21289.0,21288.0,0.939482]
[1674010411982,0.53929685,21287.0,21285.0,0.0009606]
[1674010411987,0.16073289,21287.0,21282.0,0.47679572]
[1674010411989,0.16073289,21287.0,21286.0,0.084]
[1674010412234,0.48211589,21287.0,21286.0,0.084]
[1674010412503,0.16073289,21287.0,21286.0,0.084]
[1674010412762,1.10027289,21287.0,21286.0,0.084]
[1674010413012,1.42165589,21287.0,21282.0,0.00691672]
[1674010413256,0.321383,21286.0,21282.0,0.00691672]
[1674010413502,1.261019,21285.0,21282.0,0.00691672]
[1674010413766,0.329883,21284.0,21282.0,0.00691672]
[1674010413999,0.15,21282.0,21281.0,0.00392854]
[1674010414254,1.654593,21282.0,21281.0,0.00392854]
[1674010414737,2.0571581,21282.0,21281.0,0.00392854]
[1674010414986,2.70090652,21282.0,21281.0,0.00392854]
[1674010415244,2.70090652,21282.0,21281.0,2.854e-05]
[1674010415495,2.70090652,21282.0,21278.0,0.00735638]
[1674010415496,0.00691,21280.0,21278.0,0.00735638]
[1674010415744,1.731221,21279.0,21278.0,0.00735638]
[1674010416001,1.739721,21279.0,21278.0,0.00735638]
[1674010416515,2.45672801,21279.0,21278.0,0.00735638]
[1674010416748,2.91332801,21279.0,21278.0,0.01235638]
[1674010416991,2.520221,21279.0,21278.0,0.01235638]
[1674010417233,2.374621,21279.0,21278.0,0.01235638]
[1674010417483,2.357675,21279.0,21278.0,0.00735638]
[1674010417738,2.368675,21279.0,21278.0,0.01235638]
[1674010417986,2.368675,21279.0,21278.0,0.00735638]
[1674010418228,1.890229,21279.0,21278.0,0.00735638]
[1674010418709,0.6459,21279.0,21278.0,0.68028402]
[1674010418957,0.6239,21279.0,21278.0,0.67528402]
[1674010419212,0.6239,21279.0,21278.0,1.46663502]
[1674010419465,0.6339,21279.0,21278.0,1.25004107]
[1674010419704,0.6339,21279.0,21278.0,1.41982907]
[1674010419960,0.0101,21279.0,21278.0,1.96007865]
[1674010420222,0.002,21279.0,21278.0,2.26007865]
[1674010420473,0.16073289,21287.0,21279.0,0.15328506]
[1674010420725,0.16073289,21287.0,21285.0,0.62260169]
[1674010420970,0.16073289,21287.0,21286.0,2.58245383]
[1674010421221,0.16073289,21287.0,21286.0,2.09145178]
[1674010421496,0.16073289,21287.0,21286.0,1.26837669]
[1674010422242,0.16073289,21287.0,21286.0,0.79858469]
[1674010422487,0.16073289,21287.0,21286.0,0.321383]
[1674010422745,0.16073289,21287.0,21286.0,0.094]
[1674010422746,0.17680618,21287.0,21286.0,0.094]
[1674010422999,0.16073289,21287.0,21280.0,0.65292848]
[1674010423243,0.16073289,21287.0,21286.0,0.094]
[1674010423492,0.16073289,21287.0,21286.0,0.00168825]
[1674010423786,0.16923289,21287.0,21286.0,0.094]
[1674010424497,0.16923289,21287.0,21286.0,0.189]
[1674010425279,0.49061589,21287.0,21286.0,0.189]
[1674010426311,0.79061589,21287.0,21286.0,0.189]
[1674010426567,0.94061589,21287.0,21286.0,0.189]
[1674010427289,0.94061589,21287.0,21280.0,0.19072595]
[1674010427540,0.799685,21286.0,21280.0,0.66792764]
[1674010427783,0.478302,21286.0,21281.0,0.47720169]
[1674010428035,0.0085,21286.0,21282.0,0.66792764]
[1674010428285,0.0085,21286.0,21283.0,0.47720169]
[1674010428524,0.0085,21286.0,21283.0,0.66792764]
[1674010428773,0.16573289,21287.0,21284.0,0.47720169]
[1674010429027,0.16573289,21287.0,21285.0,0.79858469]
[1674010429279,0.16573289,21287.0,21286.0,1.73816869]
[1674010429539,0.16073289,21287.0,21286.0,1.73816869]
[1674010430350,0.16073289,21287.0,21286.0,1.82516869]
[1674010430585,0.16073289,21287.0,21286.0,0.321383]
[1674010430833,0.16073289,21287.0,21284.0,0.469823]
[1674010431086,0.16073289,21287.0,21285.0,0.47720169]
[1674010431829,0.16073289,21287.0,21286.0,0.087]
[1674010432097,0.16923289,21287.0,21283.0,0.469846]
[1674010432348,0.0085,21286.0,21285.0,0.087]
[1674010432626,0.0085,21286.0,21283.0,0.47720169]
[1674010432627,0.0846,21286.0,21283.0,0.47720169]
[1674010433326,0.554398,21286.0,21285.0,0.087]
[1674010433570,0.554398,21286.0,21279.0,0.47321806]
[1674010433571,1.58208609,21286.0,21279.0,0.47321806]
[1674010433824,0.321383,21285.0,21283.0,0.087]
[1674010434066,0.329883,21284.0,21283.0,0.087]
[1674010434313,0.0085,21286.0,21283.0,0.087]
[1674010434561,0.948104,21286.0,21283.0,0.087]
[1674010434806,0.321383,21285.0,21283.0,0.087]
[1674010435064,0.329883,21284.0,21283.0,0.087]
[1674010435309,1.269555,21284.0,21279.0,0.00328506]
[1674010435561,0.948172,21284.0,21278.0,0.47540844]
[1674010435821,0.948172,21284.0,21278.0,1.14333608]
[1674010436070,0.478336,21284.0,21278.0,1.61330408]
[1674010436318,0.486336,21284.0,21279.0,0.007]
[1674010436580,0.486336,21284.0,21279.0,0.66066695]
[1674010436832,0.494336,21284.0,21279.0,0.66066695]
[1674010437318,0.478336,21284.0,21279.0,0.66066695]
[1674010437568,0.486336,21284.0,21279.0,0.66766695]
[1674010438781,0.478336,21284.0,21279.0,0.66066695]
[1674010439020,0.956172,21284.0,21279.0,0.66766695]
[1674010439273,0.956172,21284.0,21278.0,0.47541044]
[1674010439274,1.1166792,21284.0,21278.0,0.47541044]
[1674010439511,1.1246792,21284.0,21279.0,0.007]
[1674010439749,1.1246792,21284.0,21279.0,0.19772595]
[1674010440239,0.956172,21284.0,21280.0,0.19072595]
[1674010440492,0.486336,21284.0,21281.0,0.19072595]
[1674010440755,0.486336,21284.0,21279.0,0.007]
[1674010440756,0.486336,21284.0,21279.0,0.476925]
[1674010440998,0.956172,21284.0,21279.0,0.476925]
[1674010441248,0.956172,21284.0,21279.0,0.007]
[1674010441488,0.948172,21284.0,21279.0,0.19072595]
[1674010442449,0.956172,21284.0,21279.0,0.19772595]
[1674010444414,0.956172,21284.0,21279.0,0.66766895]
[1674010444910,0.008,21284.0,21280.0,0.81262764]
[1674010445156,0.008,21284.0,21281.0,1.73869786]
[1674010445417,0.008,21284.0,21282.0,0.321383]
[1674010445661,0.008,21284.0,21283.0,0.321383]
[1674010445896,0.008,21284.0,21281.0,1.41731486]
[1674010445897,0.939563,21287.0,21281.0,1.41729986]
[1674010446147,0.899963,21288.0,21282.0,0.81792764]
[1674010446404,0.899963,21288.0,21283.0,0.98195595]
[1674010446648,0.0085,21287.0,21283.0,0.66057295]
[1674010446922,0.948049,21287.0,21281.0,0.469883]
[1674010447158,0.957049,21287.0,21281.0,0.476883]
[1674010447405,0.957049,21287.0,21281.0,0.66760895]
[1674010447916,0.948049,21287.0,21282.0,0.19072595]
[1674010448403,0.0085,21287.0,21283.0,0.19072595]
[1674010448640,0.0085,21287.0,21282.0,0.94707869]
[1674010448641,0.478276,21287.0,21282.0,0.94706069]
[1674010448880,0.478276,21287.0,21282.0,1.13778664]
[1674010449164,0.486276,21287.0,21282.0,1.13778664]
[1674010449412,0.478276,21287.0,21282.0,1.13778664]
[1674010449650,0.487276,21287.0,21283.0,0.007]
[1674010449890,0.478276,21287.0,21282.0,0.94706069]
[1674010450138,1.13868189,21287.0,21280.0,0.46992]
[1674010450392,0.321383,21286.0,21280.0,1.13784764]
[1674010450648,0.47832,21285.0,21280.0,0.46992]
[1674010450892,0.47832,21285.0,21278.0,0.94538944]
[1674010450893,0.948134,21285.0,21278.0,0.94538944]
[1674010451133,0.471383,21284.0,21282.0,0.007]
[1674010451383,0.791241,21283.0,21282.0,0.007]
[1674010451643,0.799741,21283.0,21282.0,0.007]
[1674010451887,0.799741,21283.0,21278.0,1.61331708]
[1674010452139,0.0085,21282.0,21280.0,0.007]
[1674010452391,0.0085,21282.0,21278.0,1.42259113]
[1674010452992,0.0085,21282.0,21278.0,0.95263113]
[1674010453277,0.0165,21282.0,21280.0,0.007]
[1674010453534,0.2200291,21282.0,21280.0,0.007]
[1674010453808,0.321383,21281.0,21280.0,0.007]
[1674010454066,1.419687,21281.0,21280.0,0.007]
[1674010454323,1.419687,21281.0,21278.0,0.00546144]
[1674010454582,0.329883,21280.0,21278.0,0.01246144]
[1674010454844,0.0085,21280.0,21278.0,0.00546144]
[1674010455649,0.478425,21280.0,21278.0,0.01246144]
[1674010455885,0.478425,21280.0,21278.0,0.00546144]
[1674010456140,0.486425,21280.0,21278.0,0.01246144]
[1674010456396,0.956349,21280.0,21278.0,0.01246144]
[1674010456664,0.321383,21279.0,21278.0,0.01246144]
[1674010456899,1.269775,21279.0,21278.0,0.01246144]
[1674010457903,1.351775,21279.0,21278.0,0.01246144]
[1674010458147,1.351775,21279.0,21278.0,0.00546144]
[1674010458414,0.889829,21279.0,21278.0,0.01246144]
[1674010458675,0.0985,21279.0,21278.0,0.01246144]
[1674010459940,0.0985,21279.0,21278.0,0.08856144]
[1674010460199,0.0985,21279.0,21278.0,0.95239744]
[1674010460518,0.0985,21279.0,21278.0,1.27378044]
[1674010460721,0.09,21279.0,21278.0,1.27378044]
[1674010461237,0.08991094,21279.0,21278.0,1.27378044]
[1674010463619,0.08991094,21279.0,21278.0,1.27409765]
[1674010464391,0.08991094,21279.0,21278.0,1.75129934]
[1674010467531,0.08991094,21279.0,21278.0,0.33384444]
[1674010467776,0.08991094,21279.0,21278.0,0.01246144]
[1674010468844,0.21638603,21279.0,21278.0,0.01246144]
[1674010469105,0.41979394,21279.0,21278.0,0.01246144]
[1674010470441,0.09841094,21279.0,21278.0,0.01246144]
[1674010471230,1.61716785,21279.0,21278.0,0.01246144]
[1674010471496,2.15214785,21279.0,21278.0,0.01246144]
[1674010471763,2.31801251,21279.0,21278.0,0.01246144]
[1674010472025,1.77787252,21279.0,21278.0,0.00546144]
[1674010472319,1.43568594,21279.0,21278.0,0.00646144]
[1674010472582,1.03173994,21279.0,21278.0,0.00546144]
[1674010472897,1.11573994,21279.0,21278.0,0.00646144]
[1674010473722,0.96573994,21279.0,21278.0,0.00646144]
[1674010474222,0.88173994,21279.0,21278.0,0.00546144]
[1674010474478,1.11573994,21279.0,21278.0,0.00646144]
[1674010474764,1.11573994,21279.0,21278.0,0.00546144]
[1674010475065,1.04973994,21279.0,21278.0,0.00646144]
[1674010475322,0.88173994,21279.0,21278.0,0.00546144]
[1674010475595,0.92273994,21279.0,21278.0,0.00646144]
[1674010475860,0.88173994,21279.0,21278.0,0.00546144]
[1674010476452,1.03173994,21279.0,21278.0,0.00546144]
[1674010476706,1.07273994,21279.0,21278.0,0.00646144]
[1674010476974,1.03173994,21279.0,21278.0,0.00546144]
[1674010477247,1.54268594,21279.0,21278.0,0.00646144]
[1674010477504,1.07273994,21279.0,21278.0,0.00646144]
[1674010477757,0.92273994,21279.0,21278.0,0.00646144]
[1674010478284,0.45279394,21279.0,21278.0,0.00646144]
[1674010478566,0.13141094,21279.0,21278.0,0.00646144]
[1674010478823,0.12291094,21279.0,21278.0,0.47642944]
[1674010480513,0.12291094,21279.0,21278.0,0.47659506]
[1674010480769,0.12291094,21279.0,21278.0,1.74498213]
[1674010481547,0.08191094,21279.0,21278.0,1.74398213]
[1674010481838,0.08991094,21279.0,21278.0,1.90598213]
[1674010482099,0.08991094,21279.0,21278.0,1.89398213]
[1674010482381,0.09791094,21279.0,21278.0,2.26496565]
[1674010482641,0.09791094,21279.0,21278.0,2.56496565]
[1674010482897,0.09791094,21279.0,21278.0,2.26496565]
[1674010483461,0.09791094,21279.0,21278.0,2.56510311]
[1674010483985,0.09791094,21279.0,21278.0,1.75611959]
[1674010484556,0.09791094,21279.0,21278.0,1.75598213]
[1674010485857,0.09791094,21279.0,21278.0,2.11496565]
[1674010486126,0.09782397,21279.0,21278.0,3.02933365]
[1674010487752,0.09782397,21279.0,21278.0,3.0294803]
[1674010488005,0.09782397,21279.0,21278.0,2.7294803]
[1674010488263,0.09782397,21279.0,21278.0,3.0294803]
[1674010488945,0.09782397,21279.0,21278.0,3.14128355]
[1674010489155,0.09782397,21279.0,21278.0,3.0294803]
[1674010489693,0.09782397,21279.0,21278.0,3.14128355]
[1674010489975,0.01181625,21288.0,21279.0,0.2464132]
[1674010490245,0.01181625,21288.0,21281.0,1.559661]
[1674010490502,0.01181625,21288.0,21282.0,1.34731992]
[1674010490781,0.01181625,21288.0,21283.0,2.39884264]
[1674010491028,0.01181625,21288.0,21284.0,0.98931064]
[1674010491280,0.01181625,21288.0,21285.0,0.98931064]
[1674010491576,0.01181625,21288.0,21286.0,0.321383]
[1674010491840,0.01181625,21288.0,21287.0,0.791153]
[1674010492362,0.01181625,21288.0,21287.0,1.260923]
[1674010492363,0.01391626,21288.0,21287.0,1.260923]
[1674010495307,0.58065314,21294.0,21287.0,2.09613397]
[1674010495562,0.58065314,21294.0,21288.0,1.34731992]
[1674010495823,0.58065314,21294.0,21289.0,1.60735064]
[1674010496349,0.43065314,21294.0,21290.0,0.19072595]
[1674010496595,0.48127794,21296.0,21291.0,1.13023482]
[1674010496866,0.0085,21295.0,21292.0,0.19072595]
[1674010497381,0.0085,21295.0,21292.0,0.469658]
[1674010497643,0.0085,21295.0,21291.0,1.039327]
[1674010497915,0.0085,21295.0,21291.0,1.039329]
[1674010498177,0.0085,21295.0,21291.0,0.939329]
[1674010498432,0.0085,21295.0,21292.0,0.10015761]
[1674010498687,0.0085,21295.0,21291.0,0.82767328]
[1674010498996,0.0085,21295.0,21291.0,0.569663]
[1674010499255,0.478093,21295.0,21291.0,0.569663]
[1674010499515,0.321383,21294.0,21291.0,0.469663]
[1674010499781,0.628093,21295.0,21291.0,0.469663]
[1674010500045,0.478093,21295.0,21292.0,0.00015761]
[1674010500585,0.478093,21295.0,21291.0,0.469663]
[1674010500589,0.478093,21295.0,21291.0,0.568663]
[1674010500872,0.478093,21295.0,21291.0,0.569663]
[1674010501135,0.321383,21294.0,21291.0,0.469663]
[1674010501403,0.478093,21295.0,21291.0,0.469663]
[1674010501404,0.628093,21295.0,21291.0,0.469663]
[1674010501706,0.628093,21295.0,21290.0,0.469688]
[1674010501707,0.790999,21294.0,21290.0,0.469688]
[1674010501966,0.790999,21294.0,21291.0,0.1]
[1674010501967,0.321383,21293.0,21291.0,0.1]
[1674010502249,0.469616,21294.0,21290.0,0.469688]
[1674010502512,0.469616,21294.0,21291.0,0.067]
[1674010502513,0.321383,21293.0,21291.0,0.067]
[1674010502796,0.321383,21292.0,21291.0,0.067]
[1674010503832,0.321383,21292.0,21288.0,0.939461]
[1674010504097,0.46965,21293.0,21290.0,0.099]
[1674010504412,0.939304,21293.0,21288.0,0.94693169]
[1674010504648,0.939304,21293.0,21287.0,0.469751]
[1674010504649,0.479883,21292.0,21287.0,0.469751]
[1674010504928,0.321383,21291.0,21287.0,0.469751]
[1674010505192,0.469689,21291.0,21287.0,0.469751]
[1674010505458,0.469689,21291.0,21290.0,0.099]
[1674010505864,0.469689,21291.0,21287.0,0.469751]
[1674010505865,0.478189,21291.0,21287.0,0.568751]
[1674010506084,0.478189,21291.0,21288.0,0.00050833]
[1674010506343,0.478189,21291.0,21287.0,0.569751]
[1674010507007,0.478189,21291.0,21287.0,0.76047695]
[1674010507269,0.478189,21291.0,21287.0,0.76040275]
[1674010507481,0.478189,21291.0,21287.0,0.5696768]
[1674010507698,0.478189,21291.0,21287.0,0.66040275]
[1674010507929,0.478189,21291.0,21287.0,0.46960792]
[1674010509015,0.478189,21291.0,21287.0,0.56860792]
[1674010509274,0.478189,21291.0,21287.0,0.46960792]
[1674010509527,0.478189,21291.0,21287.0,0.56960792]
[1674010509790,0.478189,21291.0,21287.0,0.66033387]
[1674010510077,0.910954,21293.0,21288.0,0.66792764]
[1674010510078,0.910956,21293.0,21288.0,0.66792764]
[1674010510312,0.4413,21293.0,21289.0,0.19072595]
[1674010510586,0.4413,21293.0,21289.0,1.13016295]
[1674010511131,0.910941,21293.0,21289.0,0.469715]
[1674010511405,0.910941,21293.0,21288.0,0.94694669]
[1674010511671,1.380578,21293.0,21288.0,1.13767264]
[1674010511926,1.380578,21293.0,21289.0,0.099]
[1674010512200,1.380578,21293.0,21288.0,1.13767264]
[1674010512469,1.380578,21293.0,21289.0,0.1]
[1674010512470,0.479883,21292.0,21289.0,0.1]
[1674010512734,0.321383,21291.0,21287.0,0.46960792]
[1674010513029,0.321383,21290.0,21287.0,0.94680961]
[1674010513290,0.628181,21292.0,21287.0,0.94680961]
[1674010513795,0.469684,21291.0,21287.0,1.13753556]
[1674010514065,0.478181,21292.0,21287.0,1.04580961]
[1674010514325,0.478181,21292.0,21287.0,1.23653556]
[1674010514589,0.478181,21292.0,21287.0,1.13753556]
[1674010514842,0.478181,21292.0,21287.0,1.60730556]
[1674010515371,0.478181,21292.0,21287.0,1.70630556]
[1674010516190,0.0085,21292.0,21287.0,1.70630556]
[1674010516451,0.0085,21292.0,21287.0,2.06431484]
[1674010516719,0.0085,21292.0,21287.0,1.70630556]
[1674010516971,0.0085,21292.0,21287.0,1.96531484]
[1674010517227,0.0085,21292.0,21287.0,2.06431484]
[1674010517491,0.0085,21292.0,21287.0,1.70630556]
[1674010518310,0.47816,21292.0,21287.0,1.70630556]
[1674010518633,0.15,21291.0,21287.0,0.56860792]
[1674010518898,1.1017489,21292.0,21287.0,0.56860792]
[1674010519160,1.1017489,21292.0,21287.0,0.75933387]
[1674010519679,1.1017489,21292.0,21287.0,0.66033387]
[1674010519992,1.1017489,21292.0,21287.0,0.75933387]
[1674010520534,1.2517489,21292.0,21287.0,0.75933387]
[1674010520819,1.2517489,21292.0,21287.0,0.66033387]
[1674010520820,0.22751507,21291.0,21287.0,0.66033387]
[1674010521085,0.69720607,21291.0,21287.0,0.46960792]
[1674010521344,0.69720607,21291.0,21287.0,0.56860792]
[1674010521345,0.321383,21290.0,21287.0,0.56860792]
[1674010521860,0.69720607,21291.0,21287.0,0.56860792]
[1674010521864,0.469691,21291.0,21287.0,0.56860792]
[1674010522122,0.469691,21291.0,21287.0,0.75933387]
[1674010522377,0.469691,21291.0,21287.0,0.56860792]
[1674010523167,0.469691,21291.0,21287.0,0.46960792]
[1674010523420,0.89453068,21292.0,21287.0,0.66049595]
[1674010523421,0.947851,21292.0,21287.0,0.66049595]
[1674010523670,0.469683,21291.0,21287.0,0.66049595]
[1674010523925,0.469683,21291.0,21287.0,0.56877]
[1674010524432,0.469683,21291.0,21287.0,0.46977]
[1674010524951,0.469683,21291.0,21287.0,0.56977]
[1674010525983,0.58212778,21291.0,21287.0,0.56977]
[1674010526470,0.58212778,21291.0,21287.0,0.76049595]
[1674010526471,0.469683,21291.0,21287.0,0.76049595]
[1674010526770,0.59061878,21292.0,21287.0,0.76049595]
[1674010527237,0.478174,21292.0,21287.0,0.76049595]
[1674010527485,0.478174,21292.0,21287.0,1.13026595]
[1674010527744,0.59061878,21292.0,21287.0,1.13026595]
[1674010528036,0.59061878,21292.0,21287.0,1.23026595]
[1674010528771,0.59061878,21292.0,21287.0,1.13026595]
[1674010529022,0.12094478,21292.0,21287.0,1.55527523]
[1674010529325,0.0085,21292.0,21287.0,1.48827523]
[1674010529541,0.12094478,21292.0,21287.0,1.23026595]
[1674010529788,0.28088441,21291.0,21287.0,0.46977]
[1674010530098,0.28088441,21291.0,21287.0,0.56977]
[1674010530355,0.11244478,21290.0,21287.0,0.46977]
[1674010530612,0.16843963,21291.0,21287.0,0.46977]
[1674010530613,0.28088441,21291.0,21287.0,0.56877]
[1674010531132,0.11244478,21290.0,21287.0,0.66877]
[1674010531382,0.11244478,21290.0,21287.0,0.46977]
[1674010532151,0.28088441,21290.0,21287.0,0.46977]
[1674010532423,0.28088441,21290.0,21287.0,0.56977]
[1674010532907,0.11244478,21290.0,21287.0,0.56977]
[1674010534499,0.28088441,21290.0,21287.0,0.56977]
[1674010534759,0.11244478,21290.0,21287.0,0.56977]
[1674010536021,0.28088441,21290.0,21287.0,0.56977]
[1674010536300,0.43088441,21290.0,21287.0,0.56977]